Workbook

Sheet Dataset
B2: Sales of Products
B4: Product Name | C4: Unit Price | D4: Quantity | E4: Total Price
B5: Mobile | C5: 400 | D5: 10 | E5: =C5*D5 -> 4000
B6: Keyboard | C6: 120 | D6: 12
B7: Television | C7: 1400 | D7: 5
B8: Speaker | C8: 100 | D8: 3
B9: Headphone | C9: 75 | D9: 7
B10: LED Light | C10: 10 | D10: 18
B11: Router | C11: 125 | D11: 6
B12: Trimmer | C12: 80 | D12: 9
B13: Mouse | C13: 50 | D13: 14
B14: Laptop | C14: 1000 | D14: 8

Sheet Excel Options
B2: Using Excel Options | I2: Try Yourself
B4: Product Name | C4: Unit Price | D4: Quantity | E4: Total Price | I4: Product Name | J4: Unit Price | K4: Quantity | L4: Total Price
B5: Mobile | C5: 400 | D5: 10 | E5: =C5*D5 -> 4000 | I5: Mobile | J5: 400 | K5: 10
B6: Keyboard | C6: 120 | D6: 12 | E6: =C6*D6 -> 1440 | I6: Keyboard | J6: 120 | K6: 12
B7: Television | C7: 1400 | D7: 5 | E7: 7000 | I7: Television | J7: 1400 | K7: 5
B8: Speaker | C8: 100 | D8: 3 | E8: 300 | I8: Speaker | J8: 100 | K8: 3
B9: Headphone | C9: 75 | D9: 7 | E9: 525 | I9: Headphone | J9: 75 | K9: 7
B10: LED Light | C10: 10 | D10: 18 | E10: 180 | I10: LED Light | J10: 10 | K10: 18
B11: Router | C11: 125 | D11: 6 | E11: 750 | I11: Router | J11: 125 | K11: 6
B12: Trimmer | C12: 80 | D12: 9 | E12: 720 | I12: Trimmer | J12: 80 | K12: 9
B13: Mouse | C13: 50 | D13: 14 | E13: 700 | I13: Mouse | J13: 50 | K13: 14
B14: Laptop | C14: 1000 | D14: 8 | E14: 8000 | I14: Laptop | J14: 1000 | K14: 8

Sheet Automatic
B2: Enabling Calculations Options to Automatic | I2: Try Yourself
B4: Product Name | C4: Unit Price | D4: Quantity | E4: Total Price | I4: Product Name | J4: Unit Price | K4: Quantity | L4: Total Price
B5: Mobile | C5: 400 | D5: 10 | E5: =C5*D5 -> 4000 | I5: Mobile | J5: 400 | K5: 10
B6: Keyboard | C6: 120 | D6: 12 | E6: =C6*D6 -> 1440 | I6: Keyboard | J6: 120 | K6: 12
B7: Television | C7: 1400 | D7: 5 | E7: 7000 | I7: Television | J7: 1400 | K7: 5
B8: Speaker | C8: 100 | D8: 3 | E8: 300 | I8: Speaker | J8: 100 | K8: 3
B9: Headphone | C9: 75 | D9: 7 | E9: 525 | I9: Headphone | J9: 75 | K9: 7
B10: LED Light | C10: 10 | D10: 18 | E10: 180 | I10: LED Light | J10: 10 | K10: 18
B11: Router | C11: 125 | D11: 6 | E11: 750 | I11: Router | J11: 125 | K11: 6
B12: Trimmer | C12: 80 | D12: 9 | E12: 720 | I12: Trimmer | J12: 80 | K12: 9
B13: Mouse | C13: 50 | D13: 14 | E13: 700 | I13: Mouse | J13: 50 | K13: 14
B14: Laptop | C14: 1000 | D14: 8 | E14: 8000 | I14: Laptop | J14: 1000 | K14: 8

Sheet Calculate Now
B2: Using Calculate Now Option | I2: Try Yourself
B4: Product Name | C4: Unit Price | D4: Quantity | E4: Total Price | I4: Product Name | J4: Unit Price | K4: Quantity | L4: Total Price
B5: Mobile | C5: 400 | D5: 10 | E5: =C5*D5 -> 4000 | I5: Mobile | J5: 400 | K5: 10
B6: Keyboard | C6: 120 | D6: 12 | E6: =C6*D6 -> 1440 | I6: Keyboard | J6: 120 | K6: 12
B7: Television | C7: 1400 | D7: 5 | E7: 7000 | I7: Television | J7: 1400 | K7: 5
B8: Speaker | C8: 100 | D8: 3 | E8: 300 | I8: Speaker | J8: 100 | K8: 3
B9: Headphone | C9: 75 | D9: 7 | E9: 525 | I9: Headphone | J9: 75 | K9: 7
B10: LED Light | C10: 10 | D10: 18 | E10: 180 | I10: LED Light | J10: 10 | K10: 18
B11: Router | C11: 125 | D11: 6 | E11: 750 | I11: Router | J11: 125 | K11: 6
B12: Trimmer | C12: 80 | D12: 9 | E12: 720 | I12: Trimmer | J12: 80 | K12: 9
B13: Mouse | C13: 50 | D13: 14 | E13: 700 | I13: Mouse | J13: 50 | K13: 14
B14: Laptop | C14: 1000 | D14: 8 | E14: 8000 | I14: Laptop | J14: 1000 | K14: 8

Sheet Keyboard Shortcut
B2: Applying Keyboard Shortcut | I2: Try Yourself
B4: Product Name | C4: Unit Price | D4: Quantity | E4: Total Price | I4: Product Name | J4: Unit Price | K4: Quantity | L4: Total Price
B5: Mobile | C5: 400 | D5: 10 | E5: =C5*D5 -> 4000 | I5: Mobile | J5: 400 | K5: 10
B6: Keyboard | C6: 120 | D6: 12 | E6: =C6*D6 -> 1440 | I6: Keyboard | J6: 120 | K6: 12
B7: Television | C7: 1400 | D7: 5 | E7: 7000 | I7: Television | J7: 1400 | K7: 5
B8: Speaker | C8: 100 | D8: 3 | E8: 300 | I8: Speaker | J8: 100 | K8: 3
B9: Headphone | C9: 75 | D9: 7 | E9: 525 | I9: Headphone | J9: 75 | K9: 7
B10: LED Light | C10: 10 | D10: 18 | E10: 180 | I10: LED Light | J10: 10 | K10: 18
B11: Router | C11: 125 | D11: 6 | E11: 750 | I11: Router | J11: 125 | K11: 6
B12: Trimmer | C12: 80 | D12: 9 | E12: 720 | I12: Trimmer | J12: 80 | K12: 9
B13: Mouse | C13: 50 | D13: 14 | E13: 700 | I13: Mouse | J13: 50 | K13: 14
B14: Laptop | C14: 1000 | D14: 8 | E14: 8000 | I14: Laptop | J14: 1000 | K14: 8

Sheet Table
B2: Auto Calculate for a Table | I2: Try Yourself
B4: Product Name | C4: Unit Price | D4: Quantity | E4: Total Price | I4: Product Name | J4: Unit Price | K4: Quantity | L4: Total Price
B5: Mobile | C5: 400 | D5: 10 | E5: =Table2[[#This Row],[Unit Price]]*Table2[[#This Row],[Quantity]] -> 4000 | I5: Mobile | J5: 400 | K5: 10
B6: Keyboard | C6: 120 | D6: 12 | E6: =Table2[[#This Row],[Unit Price]]*Table2[[#This Row],[Quantity]] -> 1440 | I6: Keyboard | J6: 120 | K6: 12
B7: Television | C7: 1400 | D7: 5 | E7: =Table2[[#This Row],[Unit Price]]*Table2[[#This Row],[Quantity]] -> 7000 | I7: Television | J7: 1400 | K7: 5
B8: Speaker | C8: 100 | D8: 3 | E8: =Table2[[#This Row],[Unit Price]]*Table2[[#This Row],[Quantity]] -> 300 | I8: Speaker | J8: 100 | K8: 3
B9: Headphone | C9: 75 | D9: 7 | E9: =Table2[[#This Row],[Unit Price]]*Table2[[#This Row],[Quantity]] -> 525 | I9: Headphone | J9: 75 | K9: 7
B10: LED Light | C10: 10 | D10: 18 | E10: =Table2[[#This Row],[Unit Price]]*Table2[[#This Row],[Quantity]] -> 180 | I10: LED Light | J10: 10 | K10: 18
B11: Router | C11: 125 | D11: 6 | E11: =Table2[[#This Row],[Unit Price]]*Table2[[#This Row],[Quantity]] -> 750 | I11: Router | J11: 125 | K11: 6
B12: Trimmer | C12: 80 | D12: 9 | E12: =Table2[[#This Row],[Unit Price]]*Table2[[#This Row],[Quantity]] -> 720 | I12: Trimmer | J12: 80 | K12: 9
B13: Mouse | C13: 50 | D13: 14 | E13: =Table2[[#This Row],[Unit Price]]*Table2[[#This Row],[Quantity]] -> 700 | I13: Mouse | J13: 50 | K13: 14
B14: Laptop | C14: 1000 | D14: 8 | E14: =Table2[[#This Row],[Unit Price]]*Table2[[#This Row],[Quantity]] -> 8000 | I14: Laptop | J14: 1000 | K14: 8

Sheet VBA
B2: Applying VBA Code to Auto Calculate | I2: Try Yourself
B4: Product Name | C4: Unit Price | D4: Quantity | E4: Total Price | I4: Product Name | J4: Unit Price | K4: Quantity | L4: Total Price
B5: Mobile | C5: 400 | D5: 10 | E5: 4000 | I5: Mobile | J5: 400 | K5: 10
B6: Keyboard | C6: 120 | D6: 12 | E6: 1440 | I6: Keyboard | J6: 120 | K6: 12
B7: Television | C7: 1400 | D7: 5 | E7: 7000 | I7: Television | J7: 1400 | K7: 5
B8: Speaker | C8: 100 | D8: 3 | E8: 300 | I8: Speaker | J8: 100 | K8: 3
B9: Headphone | C9: 75 | D9: 7 | E9: 525 | I9: Headphone | J9: 75 | K9: 7
B10: LED Light | C10: 10 | D10: 18 | E10: 180 | I10: LED Light | J10: 10 | K10: 18
B11: Router | C11: 125 | D11: 6 | E11: 750 | I11: Router | J11: 125 | K11: 6
B12: Trimmer | C12: 80 | D12: 9 | E12: 720 | I12: Trimmer | J12: 80 | K12: 9
B13: Mouse | C13: 50 | D13: 14 | E13: 700 | I13: Mouse | J13: 50 | K13: 14
B14: Laptop | C14: 1000 | D14: 8 | E14: 8000 | I14: Laptop | J14: 1000 | K14: 8
